fUST/lending_fUST_20250819
["ID","MTS","AMOUNT","RATE_DAILY","PERIOD"]
[380102864,1755544253812,-528.58062739,0.000233,7]
[380102865,1755544253824,-417.15472785,0.000233,7]
[380102866,1755544253844,-312.771012,0.000233,7]
[380102867,1755544253859,-312.771012,0.000233,7]
[380102868,1755544253870,-291.968156,0.000233,7]
[380102869,1755544253881,-291.968156,0.000233,7]
[380102870,1755544253890,-151.0,0.000233,7]
[380102871,1755544253899,-151.0,0.000233,7]
[380102872,1755544253909,-1000.0,0.000233,2]
[380102873,1755544253919,-1000.0,0.000233,2]
[380102874,1755544253930,-1000.0,0.00023367,2]
[380102875,1755544253941,-149.888905,0.00023398,20]
[380102876,1755544253953,-151.0,0.000234,9]
[380102877,1755544253963,-161.04843478,0.00023425,2]
[380102878,1755544253973,-460.45454646,0.00023429,2]
[380102879,1755544253984,-203.97,0.000235,2]
[380102880,1755544253994,-161.04843478,0.00023534,2]
[380102881,1755544254003,-480.0,0.00023561,2]
[380102882,1755544254013,-1871.53,0.00023561,2]
[380102883,1755544254023,-200.0,0.00023561,2]
[380102884,1755544254033,-200.0,0.00023561,2]
[380102885,1755544254043,-200.0,0.00023561,2]
[380102886,1755544254054,-200.0,0.00023561,2]
[380102887,1755544254065,-200.0,0.00023561,2]
[380102888,1755544254074,-200.0,0.00023561,2]
[380102889,1755544254084,-200.0,0.00023561,2]
[380102890,1755544254093,-256.93432602,0.00023561,2]
[380102891,1755544254102,-7370.49,0.00023561,2]
[380102892,1755544254111,-1673.6,0.00023561,2]
[380102893,1755544254121,-480.0,0.00023561,2]
[380102894,1755544254131,-821.89,0.00023561,2]
[380102895,1755544254140,-524.25,0.00023561,2]
[380102896,1755544254150,-860.1,0.00023561,2]
[380102897,1755544254159,-494.64,0.00023561,2]
[380102898,1755544254169,-1339.032758,0.00023561,7]
[380102899,1755544254178,-1339.032758,0.00023561,7]
[380102900,1755544254187,-519.68,0.00023561,2]
[380102901,1755544254197,-480.0,0.00023561,2]
[380102902,1755544254206,-1178.6,0.00023561,2]
[380102903,1755544254215,-151.0,0.00023561,7]
[380102904,1755544254224,-151.0,0.00023561,7]
[380102905,1755544254234,-726.07,0.00023561,2]
[380102906,1755544254243,-480.0,0.00023561,2]
[380102907,1755544254253,-323.404346,0.00023561,7]
[380102908,1755544254263,-323.404346,0.00023561,7]
[380102909,1755544254272,-1749.58,0.00023561,2]
[380102910,1755544254281,-644.39,0.00023561,2]
[380102911,1755544254290,-297.665573,0.00023561,7]
[380102912,1755544254300,-297.665573,0.00023561,7]
[380102913,1755544254310,-1299.74,0.00023561,2]
[380102914,1755544254319,-151.0,0.00023561,7]
[380102915,1755544254328,-151.0,0.00023561,7]
[380102916,1755544254337,-158.539587,0.00023561,7]
[380102917,1755544254346,-158.539587,0.00023561,7]
[380102918,1755544254356,-816.24,0.00023561,2]
[380102919,1755544254366,-151.0,0.00023561,7]
[380102920,1755544254377,-151.0,0.00023561,7]
[380102921,1755544254388,-684.61,0.00023561,2]
[380102922,1755544254398,-480.0,0.00023561,2]
[380102923,1755544254409,-808.62,0.00023561,2]
[380102924,1755544254420,-480.0,0.00023561,2]
[380102925,1755544254429,-151.0,0.00023561,7]
[380102926,1755544254439,-480.0,0.00023561,2]
[380102927,1755544254450,-599.15,0.00023561,2]
[380102928,1755544254459,-1014.97995656,0.00023563,2]
[380102929,1755544254469,-500.0,0.00023573,2]
[380102930,1755544254479,-258.65788659,0.00023573,2]
[380102931,1755544254493,-215.33119667,0.00023573,2]
[380102932,1755544254503,-500.0,0.00023573,2]
[380102933,1755544254514,-500.0,0.00023573,2]
[380102934,1755544254524,-500.0,0.00023573,2]
[380102935,1755544254534,-278.9250927,0.00023573,2]
[380102936,1755544254544,-201.90727851,0.00023599,2]
[380102937,1755544254554,-3370.24,0.000236,7]
[380102938,1755544254565,-18819.48,0.000236,2]
[380102939,1755544254575,-151.0,0.000236,7]
[380102940,1755544254584,-151.0,0.000236,7]
[380102941,1755544254594,-151.0,0.000236,7]
[380102942,1755544254604,-456.908336,0.000236,7]
[380102943,1755544254614,-151.0,0.000236,7]
[380102944,1755544254623,-151.0,0.000236,7]
[380102945,1755544254633,-456.908336,0.000236,7]
[380102946,1755544254643,-5634.17138409,0.00023641,2]
[380102947,1755544254655,-1349.34,0.00023662,2]
[380102948,1755544254665,-864.0,0.00023668,20]
[380102949,1755544254675,-161.04843478,0.00023671,2]
[380102950,1755544254686,-1000.0,0.00023742,2]
[380102951,1755544254695,-1344.24446895,0.00023742,2]
[380102952,1755544254706,-1500.0,0.00023742,2]
[380102953,1755544254716,-1500.0,0.00023742,2]
[380102954,1755544254727,-1500.0,0.00023742,2]
[380102955,1755544254742,-1225.73371381,0.00023768,2]
[380102956,1755544254751,-1000.0,0.00023768,2]
[380102957,1755544254762,-500.0,0.00023768,2]
[380102958,1755544254776,-1000.0,0.00023768,2]
[380102959,1755544254786,-185.47411264,0.00023773,2]
[380102960,1755544254796,-500.12747643,0.00023773,2]
[380102961,1755544254807,-500.0,0.00023773,2]
[380102962,1755544254819,-500.0,0.00023773,2]
[380102963,1755544254829,-149.888905,0.00023776,2]
[380102964,1755544254841,-161.04843478,0.00023781,2]
[380102965,1755544254852,-587.297251,0.00023781,2]
[380102966,1755544254862,-587.583208,0.00023781,2]
[380102967,1755544254872,-293.8392635,0.00023781,2]
[380102968,1755544254882,-293.8392635,0.00023781,2]
[380102969,1755544254892,-425.0978625,0.00023781,2]
[380102970,1755544254902,-151.0,0.00023781,7]
[380102971,1755544254912,-558.615011,0.00023781,7]
[380102972,1755544254922,-151.0,0.00023781,7]
[380102973,1755544254932,-558.615011,0.00023781,7]
[380102974,1755544254943,-295.573452,0.00023781,7]
[380102975,1755544254952,-241.270586,0.00023781,7]
[380102976,1755544254961,-151.0,0.00023781,7]
[380102977,1755544254971,-295.573452,0.00023781,7]
[380102978,1755544254980,-151.0,0.00023781,7]
[380102979,1755544254992,-151.0,0.00023781,7]
[380102980,1755544255001,-259.930726,0.00023781,7]
[380102981,1755544255011,-155.020978,0.00023781,7]
[380102982,1755544255021,-155.020978,0.00023781,7]
[380102983,1755544255031,-151.0,0.00023781,7]
[380102984,1755544255040,-151.0,0.00023781,7]
[380102985,1755544255050,-263.730062,0.00023781,7]
[380102986,1755544255059,-263.730062,0.00023781,7]
[380102987,1755544255069,-184.973568,0.00023781,7]
[380102988,1755544255078,-184.973568,0.00023781,7]
[380102989,1755544255088,-151.0,0.00023781,7]
[380102990,1755544255098,-151.0,0.00023781,7]
[380102991,1755544255106,-151.0,0.00023781,7]
[380102992,1755544255115,-151.0,0.00023781,7]
[380102993,1755544255124,-436.296631,0.00023781,7]
[380102994,1755544255134,-151.0,0.00023781,7]
[380102995,1755544255143,-436.296631,0.00023781,7]
[380102996,1755544255152,-1068.98,0.000238,7]
[380102997,1755544255161,-480.0,0.00023835,2]
[380102998,1755544255170,-151.0,0.00023835,7]
[380102999,1755544255182,-151.0,0.00023835,7]
[380103000,1755544255194,-423.732602,0.00023835,7]
[380103001,1755544255204,-423.732602,0.00023835,7]
[380103002,1755544255214,-151.0,0.00023835,7]
[380103003,1755544255225,-151.0,0.00023835,7]
[380103004,1755544255237,-1871.53,0.00023835,2]
[380103005,1755544255247,-151.0,0.00023835,7]
[380103006,1755544255256,-151.0,0.00023835,7]
[380103007,1755544255266,-151.0,0.00023835,7]
[380103008,1755544255276,-151.0,0.00023835,7]
[380103009,1755544255285,-151.0,0.00023835,7]
[380103010,1755544255296,-238.848605,0.00023835,7]
[380103011,1755544255306,-249.08017,0.00023835,7]
[380103012,1755544255316,-151.0,0.00023835,7]
[380103013,1755544255326,-151.0,0.00023835,7]
[380103014,1755544255335,-151.0,0.00023835,7]
[380103015,1755544255344,-151.0,0.00023835,7]
[380103016,1755544255353,-151.0,0.00023835,7]
[380103017,1755544255362,-151.0,0.00023835,7]
[380103018,1755544255371,-151.0,0.00023835,7]
[380103019,1755544255381,-7370.49,0.00023835,2]
[380103020,1755544255390,-1673.6,0.00023835,2]
[380103021,1755544255400,-480.0,0.00023835,2]
[380103022,1755544255409,-821.89,0.00023835,2]
[380103023,1755544255418,-524.25,0.00023835,2]
[380103024,1755544255428,-860.1,0.00023835,2]
[380103025,1755544255437,-494.64,0.00023835,2]
[380103026,1755544255446,-519.68,0.00023835,2]
[380103027,1755544255456,-480.0,0.00023835,2]
[380103028,1755544255465,-1178.6,0.00023835,2]
[380103029,1755544255476,-726.07,0.00023835,2]
[380103030,1755544255487,-480.0,0.00023835,2]
[380103031,1755544255496,-1749.58,0.00023835,2]
[380103032,1755544255506,-644.39,0.00023835,2]
[380103033,1755544255515,-1299.74,0.00023835,2]
[380103034,1755544255524,-816.24,0.00023835,2]
[380103035,1755544255534,-684.61,0.00023835,2]
[380103036,1755544255543,-419.29053191,0.00023835,2]
[380103037,1755544255554,-808.62,0.00023835,2]
[380103038,1755544255563,-480.0,0.00023835,2]
[380103039,1755544255573,-480.0,0.00023835,2]
[380103040,1755544255583,-599.15,0.00023835,2]
[380103041,1755544255592,-1400.0,0.00023865,2]
[380103042,1755544255601,-151.0,0.000239,8]
[380103043,1755544255610,-375.82681177,0.000239,7]
[380103044,1755544255619,-417.15472785,0.000239,7]
[380103045,1755544255629,-1000.0,0.00023915,2]
[380103046,1755544255638,-161.04843478,0.00023918,2]
[380103047,1755544255648,-160.0,0.00024,7]
[380103048,1755544255741,-160.0,0.00024,7]
[380103049,1755544255752,-160.0,0.00024,7]
[380103050,1755544255762,-160.0,0.00024,7]
[380103051,1755544255774,-160.0,0.00024,7]
[380103052,1755544255783,-216.85420361,0.00024,7]
[380103053,1755544255792,-843.81736472,0.00024,7]
[380103054,1755544255803,-160.0,0.00024,7]
[380103055,1755544255812,-232.18122251,0.00024,7]
[380103056,1755544255822,-173.928456,0.00024026,7]
[380103057,1755544255831,-151.0,0.00024026,7]
[380103058,1755544255841,-173.928456,0.00024026,7]
[380103059,1755544255852,-151.0,0.00024026,7]
[380103060,1755544255861,-151.0,0.00024026,7]
[380103061,1755544255870,-161.04843478,0.00024027,2]
[380103062,1755544255879,-5634.17138409,0.00024056,2]
[380103063,1755544255888,-488.0,0.00024089,2]
[380103064,1755544255897,-480.0,0.00024109,2]
[380103065,1755544255907,-151.0,0.00024109,7]
[380103066,1755544255916,-151.0,0.00024109,7]
[380103067,1755544255925,-151.0,0.00024109,7]
[380103068,1755544255934,-151.0,0.00024109,7]
[380103069,1755544255944,-151.0,0.00024109,7]
[380103070,1755544255953,-1871.53,0.00024109,2]
[380103071,1755544255962,-271.709396,0.00024109,7]
[380103072,1755544255972,-151.0,0.00024109,7]
[380103073,1755544255981,-151.0,0.00024109,7]
[380103074,1755544255991,-151.0,0.00024109,7]
[380103075,1755544256000,-151.0,0.00024109,7]
[380103076,1755544256009,-151.0,0.00024109,7]
[380103077,1755544256018,-151.0,0.00024109,7]
[380103078,1755544256028,-151.0,0.00024109,7]
[380103079,1755544256037,-151.0,0.00024109,7]
[380103080,1755544256046,-151.0,0.00024109,7]
[380103081,1755544256055,-7370.49,0.00024109,2]
[380103082,1755544256065,-1673.6,0.00024109,2]
[380103083,1755544256074,-480.0,0.00024109,2]
[380103084,1755544256084,-151.0,0.00024109,7]
[380103085,1755544256093,-260.689848,0.00024109,7]
[380103086,1755544256103,-821.89,0.00024109,2]
[380103087,1755544256112,-151.0,0.00024109,7]
[380103088,1755544256122,-456.908336,0.00024109,7]
[380103089,1755544256131,-151.792072,0.00024109,7]
[380103090,1755544256140,-151.0,0.00024109,7]
[380103091,1755544256149,-456.908336,0.00024109,7]
[380103092,1755544256158,-524.25,0.00024109,2]
[380103093,1755544256167,-860.1,0.00024109,2]
[380103094,1755544256176,-494.64,0.00024109,2]
[380103095,1755544256186,-519.68,0.00024109,2]
[380103096,1755544256195,-480.0,0.00024109,2]
[380103097,1755544256205,-1178.6,0.00024109,2]
[380103098,1755544256216,-726.07,0.00024109,2]
[380103099,1755544256226,-480.0,0.00024109,2]
[380103100,1755544256237,-42.6214443,0.00024109,2]
[380103101,1755544256385,-480.0,0.00022739,2]
[380103102,1755544256394,-980.4,0.00022739,2]
[380103103,1755544256404,-480.0,0.00023013,2]
[380103104,1755544256414,-980.4,0.00023013,2]
[380103105,1755544256424,-151.0,0.00023013,7]
[380103106,1755544256434,-980.4,0.00023287,2]
[380103107,1755544256443,-480.0,0.00023287,2]
[380103108,1755544256452,-1000.0,0.000233,2]
[380103109,1755544256461,-1000.0,0.000233,2]
[380103110,1755544256471,-1000.0,0.000233,2]
[380103111,1755544256480,-1000.0,0.000233,2]
[380103112,1755544256490,-1000.0,0.000233,2]
[380103113,1755544256500,-1000.0,0.000233,2]
[380103114,1755544256509,-1000.0,0.000233,2]
[380103115,1755544256518,-1000.0,0.000233,2]
[380103116,1755544256527,-1000.0,0.000233,2]
[380103117,1755544256537,-151.0,0.000233,7]
[380103118,1755544256546,-1000.0,0.000233,2]
[380103119,1755544256555,-480.0,0.00023561,2]
[380103120,1755544256564,-980.4,0.00023561,2]
[380103121,1755544256573,-480.0,0.00023835,2]
[380103122,1755544256583,-980.4,0.00023835,2]
[380103123,1755544256592,-1706.9585557,0.00024109,2]
[380103124,1755544256601,-644.39,0.00024109,2]
[380103125,1755544256611,-1299.74,0.00024109,2]
[380103126,1755544256620,-816.24,0.00024109,2]
[380103127,1755544256630,-684.61,0.00024109,2]
[380103128,1755544256639,-808.62,0.00024109,2]
[380103129,1755544256649,-480.0,0.00024109,2]
[380103130,1755544256658,-480.0,0.00024109,2]
[380103131,1755544256667,-599.15,0.00024109,2]
[380103132,1755544256677,-488.0,0.00024113,2]
[380103133,1755544256686,-547.24129116,0.00024121,2]
[380103134,1755544256696,-1000.0,0.00024121,2]
[380103135,1755544256705,-149.888905,0.00024137,30]
[380103136,1755544256714,-752.24595752,0.00024152,2]
[380103137,1755544256723,-151.0,0.00024152,7]
[380103138,1755544256733,-151.0,0.00024152,7]
[380103139,1755544256744,-423.732602,0.00024152,7]
[380103140,1755544256754,-423.732602,0.00024152,7]
[380103141,1755544256763,-161.04843478,0.00024164,2]
[380103142,1755544256776,-2200.0,0.00024256,2]
[380103143,1755544256785,-161.04843478,0.00024274,2]
[380103144,1755544256795,-1502.68911611,0.0002429,2]
[380103145,1755544256804,-2000.0,0.0002429,2]
[380103146,1755544256814,-151.0,0.000243,7]
[380103147,1755544256823,-500.0,0.00024321,2]
[380103148,1755544256833,-1000.0,0.00024321,2]
[380103149,1755544256842,-166.17,0.00024327,7]
[380103150,1755544256852,-203.89,0.00024327,7]
[380103151,1755544256862,-5000.0,0.00024346,2]
[380103152,1755544256871,-149.888905,0.00024348,4]
[380103153,1755544256881,-480.0,0.00024383,2]
[380103154,1755544256890,-1871.53,0.00024383,2]
[380103155,1755544256899,-7370.49,0.00024383,2]
[380103156,1755544256909,-1673.6,0.00024383,2]
[380103157,1755544256918,-480.0,0.00024383,2]
[380103158,1755544256927,-821.89,0.00024383,2]
[380103159,1755544256937,-524.25,0.00024383,2]
[380103160,1755544256948,-860.1,0.00024383,2]
[380103161,1755544256957,-494.64,0.00024383,2]
[380103162,1755544256966,-519.68,0.00024383,2]
[380103163,1755544256975,-480.0,0.00024383,2]
[380103164,1755544256985,-1178.6,0.00024383,2]
[380103165,1755544256994,-726.07,0.00024383,2]
[380103166,1755544257002,-561.52209925,0.00024383,2]
[380103167,1755544257012,-1749.58,0.00024383,2]
[380103168,1755544257021,-644.39,0.00024383,2]
[380103169,1755544257030,-1299.74,0.00024383,2]
[380103170,1755544257039,-816.24,0.00024383,2]
[380103171,1755544257049,-684.61,0.00024383,2]
[380103172,1755544257058,-808.62,0.00024383,2]
[380103173,1755544257067,-480.0,0.00024383,2]
[380103174,1755544257077,-480.0,0.00024383,2]
[380103175,1755544257086,-599.15,0.00024383,2]
[380103176,1755544257095,-972.0,0.0002441,2]
[380103177,1755544257103,-2153.0,0.0002441,2]
[380103178,1755544257112,-637.0,0.0002441,2]
[380103179,1755544257121,-203.89,0.00024426,7]
[380103180,1755544257130,-166.17,0.00024427,7]
[380103181,1755544257139,-200.0,0.0002443,10]
[380103182,1755544257149,-149.888905,0.0002445,7]
[380103183,1755544257160,-149.888905,0.00024466,20]
[380103184,1755544257169,-5634.17138409,0.00024472,2]
[380103185,1755544257178,-203.89,0.00024526,7]
[380103186,1755544257188,-200.08,0.00024534,2]
[380103187,1755544257197,-2728.16740401,0.00024557,2]
[380103188,1755544257206,-149.888905,0.00024576,6]
[380103189,1755544257216,-9170.36,0.000246,7]
[380103190,1755544257225,-1619.2,0.00024608,2]
[380103191,1755544257236,-203.89,0.00024626,7]
[380103192,1755544257254,-149.888905,0.00024634,6]
[380103193,1755544257263,-194.7379651,0.00024657,2]
[380103194,1755544257273,-480.0,0.00024657,2]
[380103195,1755544257282,-1871.53,0.00024657,2]
[380103196,1755544257291,-7370.49,0.00024657,2]
[380103197,1755544257300,-1673.6,0.00024657,2]
[380103198,1755544257309,-480.0,0.00024657,2]
[380103199,1755544257318,-821.89,0.00024657,2]
[380103200,1755544257327,-524.25,0.00024657,2]
[380103201,1755544257336,-860.1,0.00024657,2]
[380103202,1755544257346,-494.64,0.00024657,2]
[380103203,1755544257355,-519.68,0.00024657,2]
[380103204,1755544257364,-625.66,0.00024657,2]
[380103205,1755544257374,-1178.6,0.00024657,2]
[380103206,1755544257383,-726.07,0.00024657,2]
[380103207,1755544257392,-1749.58,0.00024657,2]
[380103208,1755544257402,-644.39,0.00024657,2]
[380103209,1755544257411,-1299.74,0.00024657,2]
[380103210,1755544257420,-816.24,0.00024657,2]
[380103211,1755544257429,-684.61,0.00024657,2]
[380103212,1755544257438,-808.62,0.00024657,2]
[380103213,1755544257447,-480.0,0.00024657,2]
[380103214,1755544257455,-200.57662819,0.00024657,2]
[380103215,1755544257464,-599.15,0.00024657,2]
[380103216,1755544257474,-190.14138096,0.00024658,2]
[380103217,1755544257482,-500.0,0.00024658,2]
[380103218,1755544257493,-151.0,0.00024658,2]
[380103219,1755544257502,-151.0,0.00024658,2]
[380103220,1755544257511,-151.0,0.00024658,2]
[380103221,1755544257520,-151.0,0.00024658,2]
[380103222,1755544257530,-151.0,0.00024658,2]
[380103223,1755544257539,-151.0,0.00024658,2]
[380103224,1755544257548,-151.0,0.00024658,2]
[380103225,1755544257558,-151.0,0.00024658,2]
[380103226,1755544257567,-500.0,0.00024658,2]
[380103227,1755544257576,-500.0,0.00024658,2]
[380103228,1755544257668,-151.0,0.00024658,2]
[380103229,1755544257677,-151.0,0.00024658,2]
[380103230,1755544257687,-151.0,0.00024658,2]
[380103231,1755544257697,-151.0,0.00024658,2]
[380103232,1755544257708,-151.0,0.00024658,2]
[380103233,1755544257723,-151.0,0.00024658,2]
[380103234,1755544257742,-151.0,0.00024658,2]
[380103235,1755544257762,-500.0,0.00024658,2]
[380103236,1755544257782,-500.0,0.00024658,2]
[380103237,1755544257801,-151.0,0.00024658,2]
[380103238,1755544257811,-1000.0,0.00024668,2]
[380103239,1755544257820,-488.0,0.0002467,2]
[380103240,1755544257829,-149.888905,0.00024675,7]
[380103241,1755544257838,-1014.97995656,0.00024698,2]
[380103242,1755544257847,-6423.3598922,0.000247,7]
[380103243,1755544257856,-151.0,0.000247,7]
[380103244,1755544257865,-151.0,0.000247,7]
[380103245,1755544257875,-823.0,0.000247,2]
[380103246,1755544257884,-203.89,0.00024726,7]
[380103247,1755544257893,-149.888905,0.00024778,2]
[380103248,1755544257902,-149.888905,0.00024798,4]
[380103249,1755544257911,-200.0,0.00024799,2]
[380103250,1755544257920,-151.0,0.000248,7]
[380103251,1755544257929,-173.928456,0.000248,7]
[380103252,1755544257938,-151.0,0.000248,7]
[380103253,1755544257947,-173.928456,0.000248,7]
[380103254,1755544257957,-151.0,0.000248,7]
[380103255,1755544257967,-151.0,0.000248,7]
[380103256,1755544257976,-151.0,0.000248,7]
[380103257,1755544257985,-151.0,0.000248,7]
[380103258,1755544257994,-423.732602,0.000248,7]
[380103259,1755544258003,-423.732602,0.000248,7]
[380103260,1755544258012,-381.98229732,0.000248,2]
[380103261,1755544258021,-203.89,0.00024826,7]
[380103262,1755544258030,-2500.0,0.00024838,2]
[380103263,1755544258039,-149.888905,0.00024849,30]
[380103264,1755544258048,-747.38662679,0.00024868,2]
[380103265,1755544258057,-300.0,0.00024873,2]
[380103266,1755544258067,-1000.0,0.00024873,2]
[380103267,1755544258075,-151.0,0.00024873,7]
[380103268,1755544258084,-151.0,0.00024873,7]
[380103269,1755544258094,-155.020978,0.00024873,7]
[380103270,1755544258103,-155.020978,0.00024873,7]
[380103271,1755544258122,-151.0,0.00024873,7]
[380103272,1755544258133,-151.0,0.00024873,7]
[380103273,1755544258143,-263.730062,0.00024873,7]
[380103274,1755544258152,-263.730062,0.00024873,7]
[380103275,1755544258161,-184.973568,0.00024873,7]
[380103276,1755544258172,-184.973568,0.00024873,7]
[380103277,1755544258181,-151.0,0.00024873,7]
[380103278,1755544258190,-151.0,0.00024873,7]
[380103279,1755544258199,-151.0,0.00024873,7]
[380103280,1755544258208,-151.0,0.00024873,7]
[380103281,1755544258218,-436.296631,0.00024873,7]
[380103282,1755544258229,-151.0,0.00024873,7]
[380103283,1755544258239,-436.296631,0.00024873,7]
[380103284,1755544258248,-312.771012,0.00024873,7]
[380103285,1755544258257,-312.771012,0.00024873,7]
[380103286,1755544258267,-291.968156,0.00024873,7]
[380103287,1755544258276,-291.968156,0.00024873,7]
[380103288,1755544258285,-151.0,0.00024873,7]
[380103289,1755544258294,-151.0,0.00024873,7]
[380103290,1755544258303,-151.0,0.00024887,7]
[380103291,1755544258312,-558.615011,0.00024887,7]
[380103292,1755544258322,-558.615011,0.00024887,7]
[380103293,1755544258331,-295.573452,0.00024887,7]
[380103294,1755544258340,-295.573452,0.00024887,7]
[380103295,1755544258349,-151.809288,0.00024887,7]
[380103296,1755544258358,-151.0,0.00024887,7]
[380103297,1755544258367,-158.539587,0.00024887,7]
[380103298,1755544258376,-158.539587,0.00024887,7]
[380103299,1755544258386,-151.0,0.00024887,7]
[380103300,1755544258395,-5634.17138409,0.00024887,2]
[380103301,1755544258404,-757.68,0.00024899,2]
[380103302,1755544258413,-480.0,0.00024899,2]
[380103303,1755544258422,-480.0,0.00024899,2]
[380103304,1755544258432,-843.38,0.00024899,2]
[380103305,1755544258441,-480.0,0.00024899,2]
[380103306,1755544258450,-1339.032758,0.00024899,7]
[380103307,1755544258459,-1339.032758,0.00024899,7]
[380103308,1755544258468,-151.0,0.00024899,7]
[380103309,1755544258477,-480.0,0.00024899,2]
[380103310,1755544258487,-323.404346,0.00024899,7]
[380103311,1755544258496,-323.404346,0.00024899,7]
[380103312,1755544258505,-297.665573,0.00024899,7]
[380103313,1755544258515,-297.665573,0.00024899,7]
[380103314,1755544258524,-151.0,0.00024899,7]
[380103315,1755544258533,-502.78690373,0.00024899,2]
[380103316,1755544258542,-151.0,0.00024899,7]
[380103317,1755544258551,-280.386936,0.00024899,7]
[380103318,1755544258561,-681.55,0.00024899,2]
[380103319,1755544258570,-480.0,0.00024899,2]
[380103320,1755544258579,-157.378031,0.000249,7]
[380103321,1755544258589,-151.0,0.000249,7]
[380103322,1755544258598,-3370.24,0.000249,7]
[380103323,1755544258607,-18819.48,0.000249,2]
[380103324,1755544258617,-151.0,0.000249,7]
[380103325,1755544258626,-222.066546,0.000249,7]
[380103326,1755544258635,-151.0,0.000249,7]
[380103327,1755544258644,-173.928456,0.000249,7]
[380103328,1755544258654,-151.0,0.000249,7]
[380103329,1755544258663,-173.928456,0.000249,7]
[380103330,1755544258672,-151.0,0.000249,7]
[380103331,1755544258682,-151.318924,0.000249,7]
[380103332,1755544258691,-151.0,0.000249,7]
[380103333,1755544258700,-242.025526,0.000249,7]
[380103334,1755544258709,-423.732602,0.000249,7]
[380103335,1755544258719,-423.732602,0.000249,7]
[380103336,1755544258729,-151.0,0.000249,7]
[380103337,1755544258740,-151.0,0.000249,7]
[380103338,1755544258749,-151.0,0.000249,7]
[380103339,1755544258758,-151.0,0.000249,7]
[380103340,1755544258768,-151.0,0.000249,7]
[380103341,1755544258780,-156.118192,0.000249,7]
[380103342,1755544258789,-149.888905,0.000249,7]
[380103343,1755544258799,-151.0,0.000249,7]
[380103344,1755544258808,-558.615011,0.000249,7]
[380103345,1755544258818,-151.0,0.000249,7]
[380103346,1755544258827,-558.615011,0.000249,7]
[380103347,1755544258837,-295.573452,0.000249,7]
[380103348,1755544258848,-164.932012,0.000249,7]
[380103349,1755544258857,-295.573452,0.000249,7]
[380103350,1755544258867,-155.020978,0.000249,7]
[380103351,1755544258876,-155.020978,0.000249,7]
[380103352,1755544258885,-151.0,0.000249,7]
[380103353,1755544258895,-263.730062,0.000249,7]
[380103354,1755544258904,-263.730062,0.000249,7]
[380103355,1755544258913,-184.973568,0.000249,7]
[380103356,1755544258922,-151.0,0.000249,7]
[380103357,1755544258931,-184.973568,0.000249,7]
[380103358,1755544258941,-151.0,0.000249,7]
[380103359,1755544258950,-151.0,0.000249,7]
[380103360,1755544258959,-151.0,0.000249,7]
[380103361,1755544258970,-436.296631,0.000249,7]
[380103362,1755544258978,-151.0,0.000249,7]
[380103363,1755544258988,-436.296631,0.000249,7]